bitfinex/quotes_SOLUSD_20250919
["timestamp","ask_amount","ask_price","bid_price","bid_amount"]
[1758305970306,1.59385447,236.79,236.75,62.29912093]
[1758305970503,2.20385447,236.79,236.75,62.29912093]
[1758305970921,0.1,236.79,236.75,62.96912093]
[1758305971121,0.71,236.79,236.77,13.59559401]
[1758305971425,2.10385447,236.78,236.75,38.12386483]
[1758305971613,1.49385447,236.76,236.75,17.81945884]
[1758305972302,1.49385447,236.78,236.75,17.81945884]
[1758305972502,2.10385447,236.78,236.75,17.81945884]
[1758305973039,0.1,236.79,236.77,4.22350804]
[1758305973619,2.20385447,236.79,236.77,38.12350804]
[1758305974226,0.1,236.79,236.77,38.12350804]
[1758305975108,0.61,236.78,236.76,47.49559401]
[1758305975623,0.1,236.79,236.76,47.49559401]
[1758305975817,0.1,236.79,236.77,0.67]
[1758305976226,0.1,236.79,236.77,33.9]
[1758305976525,0.1,236.79,236.78,4.22332967]
[1758305977326,1.59385447,236.79,236.78,4.22332967]
[1758305977704,0.1,236.79,236.78,4.22332967]
[1758305977908,0.1,236.79,236.78,13.59559401]
[1758305978220,0.1,236.79,236.78,14.26559401]
[1758305978603,0.1,236.79,236.78,51.69892368]
[1758305979014,0.1,236.79,236.78,18.48892368]
[1758305979213,0.1,236.79,236.78,52.36892368]
[1758305979414,0.1,236.79,236.78,51.69892368]
[1758305980610,0.1,236.79,236.78,17.81892368]
[1758305981134,0.1,236.79,236.78,51.69892368]
[1758305981321,0.1,236.79,236.78,17.81892368]
[1758305982324,0.1,236.79,236.75,0.67]
[1758305982524,1.49385447,236.78,236.75,17.81945884]
[1758305982711,1.49385447,236.76,236.71,12.25481909]
[1758305982912,1.49385447,236.76,236.72,47.47559401]
[1758305983222,1.49385447,236.76,236.72,48.14559401]
[1758305983740,1.49385447,236.74,236.68,12.92628852]
[1758305983910,1.49385447,236.72,236.7,13.59559401]
[1758305984110,1.49385447,236.72,236.7,47.47559401]
[1758305984307,1.49385447,236.72,236.68,13.59559401]
[1758305984524,1.49385447,236.7,236.68,13.59559401]
[1758305984836,1.49385447,236.7,236.64,47.45559401]
[1758305984837,0.61,236.69,236.64,47.45559401]
[1758305985131,1.49385447,236.68,236.64,47.45559401]
[1758305985432,1.49385447,236.67,236.64,47.45559401]
[1758305985933,1.49385447,236.65,236.62,13.59559401]
[1758305986712,1.49385447,236.67,236.63,0.67]
[1758305986929,1.49385447,236.67,236.64,0.67]
[1758305987325,1.49385447,236.69,236.62,14.26559401]
[1758305987734,1.49385447,236.69,236.64,17.82142227]
[1758305987940,1.49385447,236.69,236.65,0.67]
[1758305988140,2.10385447,236.69,236.64,17.82142227]
[1758305988524,1.49385447,236.67,236.64,17.82142227]
[1758305989541,1.49385447,236.67,236.64,18.49142227]
[1758305990443,1.49385447,236.67,236.65,0.67]
[1758305991221,1.49385447,236.68,236.65,0.67]
[1758305991443,1.49385447,236.68,236.64,17.82142227]
[1758305991739,0.61,236.7,236.64,18.49142227]
[1758305991922,2.33694355,236.67,236.64,18.49142227]
[1758305993133,2.33694355,236.67,236.64,17.82142227]
[1758305993847,2.33694355,236.67,236.65,0.67]
[1758305994139,2.33694355,236.67,236.64,17.82142227]
[1758305994342,2.33694355,236.67,236.62,38.75604121]
[1758305994544,2.33694355,236.63,236.6,13.59559401]
[1758305994749,2.33694355,236.62,236.6,13.59559401]
[1758305995049,2.33694355,236.62,236.6,14.26559401]
[1758305995561,2.33694355,236.62,236.6,18.4920993]
[1758305996130,2.33694355,236.62,236.6,17.8220993]
[1758305996335,2.33694355,236.64,236.61,0.66]
[1758305996943,2.33694355,236.65,236.62,0.66]
[1758305997143,0.61,236.7,236.63,0.66]
[1758305997338,2.33694355,236.67,236.63,0.66]
[1758305997526,2.33694355,236.67,236.64,0.66]
[1758305997846,2.33694355,236.67,236.64,4.22572776]
[1758305998023,2.33694355,236.67,236.63,13.59559401]
[1758305998223,2.33694355,236.65,236.63,13.59559401]
[1758305998837,2.33694355,236.65,236.62,4.8860803]
[1758305999327,2.33694355,236.65,236.6,10.56635672]
[1758305999328,2.33694355,236.63,236.59,4.92672133]
[1758305999738,2.33694355,236.63,236.6,0.7]
[1758306001046,34.0313656,236.71,236.61,0.7]
[1758306001256,0.61,236.7,236.61,0.7]
[1758306001554,2.33694355,236.67,236.62,13.59559401]
[1758306001740,2.33694355,236.67,236.63,4.92600684]
[1758306002061,2.33694355,236.67,236.64,0.7]
[1758306003027,2.33694355,236.66,236.63,4.22600684]
[1758306003350,2.33694355,236.64,236.6,0.7]
[1758306003529,2.33694355,236.63,236.58,23.70799777]
[1758306003729,2.33694355,236.63,236.59,18.522149]
[1758306003949,2.33694355,236.63,236.59,29.08895233]
[1758306004144,33.84,236.69,236.61,13.59559401]
[1758306004459,2.33694355,236.65,236.6,14.29559401]
[1758306004634,2.33694355,236.64,236.6,14.29559401]
[1758306005149,2.33694355,236.63,236.61,0.7]
[1758306005652,2.33694355,236.62,236.58,12.44103474]
[1758306005844,2.33694355,236.59,236.56,0.7]
[1758306006041,2.33694355,236.57,236.56,12.42052755]
[1758306006240,2.33694355,236.57,236.54,18.52320878]
[1758306006448,2.33694355,236.56,236.55,0.7]
[1758306006632,2.33694355,236.57,236.55,0.7]
[1758306007156,2.33694355,236.58,236.55,0.7]
[1758306007532,2.33694355,236.57,236.56,0.7]
[1758306007729,2.33694355,236.57,236.56,4.92725735]
[1758306008551,2.33694355,236.57,236.53,13.69559401]
[1758306008853,2.33694355,236.55,236.54,13.59559401]
[1758306009246,2.33694355,236.56,236.54,14.29559401]
[1758306009757,2.33694355,236.56,236.55,4.92743606]
[1758306010645,2.33694355,236.56,236.54,17.82319892]
[1758306010951,2.33694355,236.56,236.54,18.52319892]
[1758306011850,2.33694355,236.56,236.53,26.13925865]
[1758306012047,2.33694355,236.55,236.53,26.13925865]
[1758306012655,2.33694355,236.56,236.54,0.7]
[1758306012841,2.33694355,236.57,236.55,0.7]
[1758306013047,2.33694355,236.58,236.56,0.7]
[1758306013251,2.33694355,236.6,236.57,0.7]
[1758306013441,2.33694355,236.61,236.57,0.7]
[1758306013762,2.33694355,236.6,236.58,4.92683278]
[1758306014059,2.33694355,236.63,236.59,0.7]
[1758306014264,33.53694355,236.64,236.59,0.7]
[1758306014565,2.33694355,236.64,236.6,0.7]
[1758306014865,2.33694355,236.64,236.59,13.59559401]
[1758306015162,2.33694355,236.65,236.61,0.7]
[1758306015654,33.53694355,236.65,236.61,0.7]
[1758306016270,33.53694355,236.65,236.62,4.22618544]
[1758306016564,2.33694355,236.64,236.62,4.22618544]
[1758306018259,2.33694355,236.64,236.6,14.7928994]
[1758306018465,0.61,236.71,236.62,0.7]
[1758306018650,2.33694355,236.66,236.62,0.7]
[1758306018851,3.43483035,236.71,236.63,0.7]
[1758306018852,2.33694355,236.67,236.63,0.7]
[1758306019158,2.33694355,236.67,236.64,0.7]
[1758306019356,2.33694355,236.69,236.65,0.7]
[1758306019559,0.61,236.68,236.61,0.7]
[1758306019866,2.33694355,236.68,236.62,13.59559401]
[1758306020238,2.33694355,236.68,236.63,0.7]
[1758306020434,2.33694355,236.68,236.64,4.92582826]
[1758306020664,31.2,236.72,236.65,0.7]
[1758306020665,2.33694355,236.69,236.65,0.7]
[1758306020857,2.33694355,236.7,236.65,0.7]
[1758306021048,2.33694355,236.7,236.66,0.7]
[1758306021235,0.61,236.74,236.67,0.7]
[1758306021452,2.33694355,236.71,236.67,0.7]
[1758306022249,2.33694355,236.7,236.65,14.29559401]
[1758306022467,2.33694355,236.69,236.66,4.92547114]
[1758306022848,2.33694355,236.68,236.66,4.92547114]
[1758306024565,0.61,236.77,236.67,14.29559401]
[1758306024863,2.33694355,236.71,236.68,0.7]
[1758306025345,2.33694355,236.72,236.68,0.7]
[1758306025540,2.33694355,236.74,236.69,13.59559401]
[1758306025745,2.33694355,236.7,236.66,15.49914899]
[1758306025946,2.33694355,236.69,236.67,14.30559401]
[1758306026243,2.33694355,236.68,236.67,14.30559401]
[1758306026460,2.33694355,236.68,236.67,18.53088661]
[1758306027069,2.33694355,236.69,236.67,18.53088661]
[1758306027564,2.33694355,236.68,236.67,18.53088661]
[1758306028359,3.44139658,236.74,236.67,18.53088661]
[1758306028546,2.33694355,236.68,236.67,17.82088661]
[1758306029971,2.33694355,236.68,236.67,18.53088661]
[1758306030171,2.33694355,236.68,236.67,17.82088661]
[1758306030866,2.94694355,236.68,236.62,13.59559401]
[1758306031069,2.33694355,236.63,236.62,13.59559401]
[1758306031484,2.33694355,236.63,236.6,13.59559401]
[1758306031682,2.33694355,236.61,236.6,14.30559401]
[1758306031967,2.33694355,236.61,236.6,0.71]
[1758306032848,2.33694355,236.61,236.6,4.93654268]
[1758306034984,0.61,236.67,236.6,4.93654268]
[1758306035151,2.33694355,236.63,236.6,4.93654268]
[1758306035473,2.33694355,236.63,236.61,0.71]
[1758306035667,2.83384522,236.68,236.6,4.22654268]
[1758306035668,2.83384522,236.68,236.62,0.71]
[1758306035855,2.33694355,236.64,236.62,0.71]
[1758306036060,2.33694355,236.64,236.63,0.71]
[1758306036255,2.33694355,236.64,236.61,0.71]
[1758306036575,2.33694355,236.62,236.61,0.71]
[1758306036961,2.33694355,236.62,236.61,4.93636405]
[1758306037345,2.33694355,236.62,236.61,18.53195806]
[1758306037573,31.81,236.71,236.62,13.59559401]
[1758306037872,2.33694355,236.66,236.63,0.71]
[1758306038049,2.33694355,236.66,236.64,0.71]
[1758306038775,2.33694355,236.66,236.65,4.22564969]
[1758306038963,2.33694355,236.66,236.63,4.93593972]
[1758306039162,2.33694355,236.65,236.63,4.93593972]
[1758306039678,2.33694355,236.64,236.61,4.22619054]
[1758306039856,2.33694355,236.63,236.61,4.22619054]
[1758306040052,2.33694355,236.63,236.62,0.71]
[1758306040465,2.33694355,236.65,236.62,0.71]
[1758306040667,2.33694355,236.66,236.63,4.22600684]
[1758306040879,2.83453812,236.7,236.64,14.30559401]
[1758306041190,31.2,236.72,236.64,14.30559401]
[1758306041191,2.33694355,236.69,236.65,0.71]
[1758306041559,2.33694355,236.7,236.66,0.71]
[1758306041756,2.33694355,236.7,236.64,13.59559401]
[1758306042072,2.33694355,236.69,236.66,13.59559401]
[1758306042251,2.33694355,236.69,236.66,0.71]
[1758306042768,2.33694355,236.69,236.67,4.2252926]
[1758306043272,33.53694355,236.72,236.67,4.2252926]
[1758306043470,34.14694355,236.72,236.67,4.2252926]
[1758306043874,33.53694355,236.72,236.67,4.9352926]
[1758306044064,34.14694355,236.72,236.67,4.2252926]
[1758306044460,0.61,236.71,236.67,4.2252926]
[1758306044776,31.2,236.72,236.67,14.7885241]
[1758306044967,31.2,236.72,236.68,0.71]
[1758306045383,31.2,236.72,236.67,14.7885241]
[1758306045384,34.14694355,236.72,236.67,4.2252926]
[1758306045883,34.14694355,236.72,236.67,4.9352926]
[1758306046073,8.8,236.7,236.67,4.9352926]
[1758306046983,8.8,236.7,236.67,15.4985241]
[1758306048391,11.13694355,236.7,236.61,13.59559401]
[1758306048566,11.13694355,236.7,236.63,15.93253756]
[1758306048769,2.33694355,236.68,236.63,13.59559401]
[1758306048972,2.33694355,236.65,236.62,13.59559401]
[1758306049278,2.33694355,236.65,236.62,14.30559401]
[1758306049462,2.33694355,236.63,236.61,4.22636405]
[1758306049663,2.33694355,236.62,236.61,4.22636405]
[1758306049867,2.33694355,236.63,236.61,4.22636405]
[1758306050872,2.33694355,236.63,236.6,17.82213669]
[1758306051076,2.33694355,236.64,236.6,17.82213669]
[1758306051898,2.33694355,236.64,236.6,4.93654268]
[1758306052102,2.33694355,236.62,236.57,4.22707866]
[1758306052404,2.33694355,236.62,236.58,13.59559401]
[1758306052405,2.33694355,236.61,236.58,13.59559401]
[1758306052899,2.33694355,236.62,236.59,0.71]
[1758306053103,2.33694355,236.62,236.58,13.59559401]
[1758306053297,36.03694355,236.63,236.58,13.59559401]
[1758306053504,36.03694355,236.63,236.58,14.30559401]
[1758306053800,35.19638983,236.63,236.58,14.30559401]
[1758306054302,35.19638983,236.63,236.59,4.22672133]
[1758306055637,31.81,236.65,236.59,4.22672133]
[1758306055772,33.7,236.64,236.59,4.94672133]
[1758306055970,35.19638983,236.64,236.59,4.94672133]
[1758306056208,35.80638983,236.64,236.59,4.94672133]
[1758306056674,35.80638983,236.64,236.59,4.22672133]
[1758306057299,35.80638983,236.64,236.58,4.22689999]
[1758306057491,2.10638983,236.63,236.58,4.22689999]
[1758306057697,35.19638983,236.63,236.58,4.94689999]
[1758306057996,1.49638983,236.61,236.58,4.22689999]
[1758306058171,1.49638983,236.62,236.58,4.22689999]
[1758306058372,1.49638983,236.62,236.58,4.94689999]
[1758306058571,35.19638983,236.63,236.58,4.94689999]
[1758306058796,35.80638983,236.63,236.58,4.94689999]
[1758306059193,1.49638983,236.63,236.58,4.94689999]
[1758306059380,1.49638983,236.63,236.6,4.22654268]
[1758306059586,35.17638983,236.63,236.6,4.22654268]
[1758306060475,35.17638983,236.63,236.58,4.22689999]
[1758306060672,1.49638983,236.62,236.58,4.22689999]
[1758306060871,1.49638983,236.62,236.58,4.94689999]
[1758306061190,35.17638983,236.63,236.58,4.94689999]
[1758306061787,35.17638983,236.63,236.59,0.72]
[1758306062296,35.17638983,236.63,236.59,4.94657556]
[1758306064403,33.68,236.63,236.59,4.94657556]
[1758306065105,66.37638983,236.67,236.6,2.21638983]
[1758306065402,64.88,236.67,236.62,1.49638983]
[1758306065606,64.88,236.67,236.63,0.72]
[1758306066702,64.88,236.67,236.64,4.22582826]
[1758306068698,64.86,236.67,236.64,4.22582826]
[1758306069203,2.10638983,236.66,236.62,4.22602271]
[1758306069404,0.61,236.65,236.62,4.22602271]
[1758306069592,2.10638983,236.66,236.62,4.22602271]
[1758306069788,64.86,236.67,236.62,4.22602271]
[1758306069789,1.49638983,236.65,236.62,4.22602271]
[1758306069983,1.49638983,236.65,236.62,4.94602271]
[1758306070183,35.15638983,236.65,236.62,4.94602271]
[1758306070598,33.66,236.65,236.62,4.94602271]
[1758306070796,1.49638983,236.66,236.62,4.22602271]
[1758306071082,33.66,236.65,236.63,0.72]
[1758306071283,33.66,236.66,236.63,0.72]
[1758306071906,31.2,236.67,236.63,0.72]
[1758306072083,33.66,236.66,236.63,0.72]
[1758306072603,33.66,236.66,236.63,4.94584024]
[1758306073402,35.76638983,236.66,236.63,4.22584024]
[1758306074189,34.27,236.66,236.63,4.22584024]
[1758306074385,35.76638983,236.66,236.63,4.22584024]
[1758306074592,35.15638983,236.66,236.61,11.28574713]
[1758306074787,35.15638983,236.66,236.62,0.72]
[1758306075513,1.49638983,236.66,236.62,0.72]
[1758306075717,33.64,236.65,236.62,4.94603892]
[1758306076703,33.64,236.65,236.62,4.22603892]
[1758306076909,33.64,236.66,236.63,0.72]
[1758306077605,32.69638983,236.67,236.63,0.72]
[1758306077817,36.4781888,236.66,236.63,0.72]
[1758306078128,33.64,236.66,236.63,0.72]
[1758306078919,33.64,236.66,236.63,4.94585748]
[1758306079101,1.49638983,236.64,236.56,11.2880311]
[1758306079294,1.49638983,236.62,236.57,0.72]
[1758306079612,35.11638983,236.63,236.58,0.72]
[1758306080519,35.11638983,236.63,236.59,4.22672133]
[1758306080816,35.11638983,236.63,236.59,4.94672133]
[1758306081016,33.62,236.63,236.59,4.94672133]
[1758306081805,1.49638983,236.64,236.59,4.94672133]
[1758306082006,1.49638983,236.64,236.58,14.79414996]
[1758306082205,33.62,236.63,236.6,0.72]
[1758306082722,33.62,236.63,236.58,15.51414996]
[1758306083016,33.62,236.63,236.59,0.72]
[1758306083189,33.62,236.63,236.58,14.79414996]
[1758306083396,33.62,236.63,236.59,0.72]
[1758306083694,33.62,236.63,236.6,0.72]
[1758306084235,33.62,236.63,236.58,15.51414996]
[1758306084405,33.62,236.63,236.59,0.72]
[1758306084920,33.62,236.63,236.57,1.49638983]
[1758306085122,31.2,236.67,236.6,0.72]
[1758306085329,2.83692835,236.66,236.63,1.49638983]
[1758306085522,8.8,236.7,236.58,31.2]
[1758306085523,2.83740881,236.69,236.65,1.49638983]
[1758306085708,33.62,236.7,236.66,0.68]
[1758306086432,33.62,236.7,236.67,4.2252926]
[1758306087004,1.49638983,236.73,236.68,0.68]
[1758306087208,2.83818357,236.74,236.69,0.68]
[1758306087407,3.44818357,236.74,236.69,0.68]
[1758306087608,33.6,236.73,236.69,0.68]
[1758306087821,2.83818357,236.72,236.69,0.68]
[1758306088634,2.83818357,236.72,236.7,4.22475707]
[1758306088824,32.69638983,236.75,236.7,4.22475707]
[1758306089023,2.83809568,236.74,236.71,0.68]
[1758306089224,2.83809568,236.75,236.72,0.68]
[1758306089402,36.43809568,236.77,236.73,0.68]
[1758306089602,2.83809568,236.76,236.73,0.68]
[1758306091031,2.83809568,236.76,236.74,4.22404325]
[1758306091232,2.83809568,236.76,236.75,0.68]
[1758306091432,28.80077464,236.78,236.75,0.68]
[1758306091831,28.80077464,236.78,236.76,0.68]
[1758306093334,28.80077464,236.78,236.77,4.90350804]
[1758306094516,28.80077464,236.78,236.77,31.48258812]
[1758306096042,0.1,236.79,236.78,13.59559401]
[1758306096225,0.1,236.79,236.78,14.27559401]
[1758306096828,0.1,236.79,236.78,18.49892368]
[1758306100215,0.1,236.79,236.78,19.99531351]
[1758306101042,0.1,236.79,236.78,18.49892368]
[1758306101342,0.1,236.79,236.78,19.99531351]
[1758306102346,0.1,236.79,236.78,18.49892368]
[1758306102749,0.1,236.79,236.78,19.99531351]
[1758306105722,0.1,236.79,236.78,99.29892368]
[1758306105946,0.1,236.79,236.78,100.79531351]
[1758306106244,0.2,236.81,236.78,111.35363769]
[1758306106421,0.2,236.81,236.8,15.09198384]
[1758306106944,0.2,236.81,236.8,15.77198384]
[1758306108346,0.2,236.81,236.8,19.99495681]
[1758306108646,0.2,236.81,236.8,53.51495681]
[1758306109430,0.2,236.81,236.8,55.20782771]
[1758306110837,1e-08,236.81,236.8,55.20782771]
[1758306111443,1e-08,236.81,236.8,136.00782771]
[1758306112135,0.2,236.83,236.82,13.59559401]
[1758306112136,1e-08,236.83,236.82,13.59559401]
[1758306112350,1e-08,236.83,236.82,49.01424547]
[1758306112533,1e-08,236.83,236.82,49.69424547]
[1758306113354,0.1,236.89,236.86,44.79559401]
[1758306113537,0.1,236.89,236.88,19.31353061]
[1758306113938,0.1,236.89,236.88,19.99353061]
[1758306114552,0.1,236.89,236.88,21.68590014]
[1758306114943,0.1,236.89,236.88,55.18590014]
[1758306115257,0.1,236.89,236.88,21.68590014]
[1758306115462,0.1,236.89,236.88,55.18590014]
[1758306115749,0.1,236.89,236.88,53.68951031]
[1758306115951,0.1,236.89,236.88,56.02064932]
[1758306117251,0.1,236.89,236.88,136.82064932]
[1758306119257,0.2,236.91,236.9,44.79559401]
[1758306119465,0.2,236.91,236.9,80.60673302]
[1758306119833,0.2,236.91,236.9,47.07559401]
[1758306120029,0.2,236.91,236.9,80.60673302]
[1758306120339,0.2,236.91,236.9,82.29903095]
[1758306120766,0.2,236.91,236.9,86.52022132]
[1758306121336,0.2,236.91,236.9,87.21022132]
[1758306121536,0.2,236.93,236.91,13.59559401]
[1758306121841,1e-08,236.92,236.91,47.74559401]
[1758306122046,1e-08,236.92,236.91,128.54559401]
[1758306122249,1e-08,236.92,236.91,132.56874461]
[1758306122435,1e-08,236.92,236.91,130.2376056]
[1758306122640,1e-08,236.92,236.91,132.56874461]
[1758306123234,1e-08,236.92,236.91,136.7897568]
[1758306123976,1e-08,236.94,236.93,44.79559401]
[1758306124131,1e-08,236.94,236.93,78.25559401]
[1758306124336,1e-08,236.94,236.93,81.27673302]
[1758306125049,1e-08,236.94,236.93,162.07673302]
[1758306125437,1e-08,236.95,236.94,13.59559401]
[1758306125755,1e-08,236.95,236.94,14.28559401]
[1758306127662,1e-08,236.95,236.94,18.50607176]
[1758306128565,1e-08,236.95,236.94,20.19786866]
[1758306128767,1e-08,236.95,236.94,55.96900767]
[1758306129142,1e-08,236.95,236.94,100.99786866]
[1758306129344,1e-08,236.95,236.94,100.30786866]
[1758306129558,1e-08,236.95,236.94,102.63900767]
[1758306130064,1e-08,236.95,236.94,136.07900767]
[1758306130458,1e-08,236.95,236.94,102.63900767]
[1758306130686,1e-08,236.95,236.94,136.76900767]
[1758306131041,1e-08,236.95,236.94,103.32900767]
[1758306131354,1e-08,236.95,236.94,136.76900767]
[1758306132155,1e-08,236.95,236.94,102.63900767]
[1758306132356,1e-08,236.95,236.94,136.07900767]
[1758306132860,1e-08,236.95,236.94,102.63900767]
[1758306133066,1e-08,236.95,236.94,136.05900767]
[1758306133554,0.61000001,236.95,236.94,132.03607176]
[1758306134374,1e-08,236.95,236.94,134.36721077]
[1758306134742,1e-08,236.95,236.94,135.05721077]
[1758306135760,0.3,236.99,236.94,145.60840516]
[1758306135974,0.3,236.99,236.98,15.92673302]
[1758306136143,0.3,236.99,236.98,49.34673302]
[1758306136337,0.3,236.99,236.98,53.5664984]
[1758306137642,0.3,236.99,236.98,39.97090439]
[1758306138267,1e-08,236.99,236.98,121.88288092]
[1758306138443,1e-08,236.99,236.98,85.70976538]
[1758306138641,1e-08,236.99,236.98,118.43976538]
[1758306139043,1e-08,236.99,236.98,120.77090439]
[1758306139258,1e-08,236.99,236.98,121.46090439]
[1758306139566,1e-08,236.99,236.98,135.0564984]
[1758306140150,1e-08,236.99,236.98,136.05808067]
[1758306140646,1e-08,236.99,236.98,132.03535939]
[1758306140846,1e-08,236.99,236.98,134.3664984]
[1758306141047,1e-08,236.99,236.98,100.9464984]
[1758306141368,0.61000001,236.99,236.96,4.21997846]
[1758306141568,0.61,236.98,236.96,4.21997846]
[1758306141761,1e-08,236.99,236.97,33.4]
[1758306142059,1e-08,236.99,236.96,37.61997846]
[1758306142266,0.61,236.98,236.96,37.61997846]
[1758306142457,0.61,236.97,236.96,51.21557247]
[1758306143348,0.61,236.97,236.92,1.69201159]
[1758306143549,0.61,236.96,236.93,33.4]
[1758306143847,0.61,236.96,236.92,1.69201159]
[1758306143848,0.61,236.95,236.92,39.31283982]
[1758306144061,0.61,236.95,236.92,37.62082823]
[1758306144943,0.61,236.94,236.92,4.22082823]
[1758306145148,0.61,236.94,236.92,85.02082823]
[1758306146055,2.33113901,236.97,236.92,85.02082823]
[1758306146254,0.61,236.96,236.92,85.02082823]
[1758306146476,0.61,236.95,236.92,85.02082823]
[1758306146855,0.61,236.94,236.92,85.02082823]
[1758306147271,0.61,236.94,236.92,80.8]
[1758306147458,0.61,236.93,236.9,4.22102231]
[1758306147663,0.61,236.92,236.88,4.22138784]
[1758306147975,0.61,236.91,236.88,4.22138784]
[1758306148354,2.94113901,236.93,236.88,4.22138784]
[1758306148574,0.61,236.92,236.88,4.22138784]
[1758306148752,0.61,236.91,236.88,4.22138784]
[1758306149462,0.61,236.96,236.89,0.65]
[1758306149777,2.94113901,236.96,236.88,4.22138784]
[1758306150086,0.61,236.95,236.88,4.22138784]
[1758306150382,2.33113901,236.96,236.88,4.22138784]
[1758306150383,0.61,236.94,236.88,4.22138784]
[1758306150852,2.33113901,236.92,236.86,4.22172742]
[1758306151051,0.61,236.91,236.86,51.21732143]
[1758306151276,0.61,236.9,236.85,37.62208148]
[1758306151448,0.61,236.89,236.85,37.62208148]
[1758306151852,0.61,236.89,236.85,4.22208148]
[1758306152861,2.94113901,236.92,236.85,4.87208148]
[1758306153372,0.61,236.91,236.85,4.22208148]
[1758306153574,0.61,236.9,236.85,4.22208148]
[1758306154085,0.61,236.9,236.85,4.87208148]
[1758306156866,2.33113901,236.91,236.86,0.65]
[1758306157575,2.94113901,236.91,236.85,4.22208148]
[1758306157766,0.61,236.93,236.86,0.65]
[1758306158087,2.33113901,236.91,236.86,0.65]
[1758306158384,2.94113901,236.91,236.86,0.65]
[1758306158986,2.94113901,236.91,236.87,4.22172499]
[1758306159169,2.33113901,236.91,236.87,4.22172499]
[1758306159372,0.61,236.9,236.85,4.22190511]
[1758306160389,0.61,236.9,236.85,4.87190511]
[1758306161074,2.33113901,236.91,236.85,4.87190511]
[1758306161788,2.94113901,236.91,236.85,4.87190511]
[1758306162377,2.33113901,236.91,236.86,0.65]
[1758306162566,2.33113901,236.91,236.87,0.65]
[1758306163070,2.94113901,236.91,236.85,4.87190511]
[1758306163585,2.33113901,236.91,236.85,4.22190511]
[1758306163791,2.33113901,236.91,236.86,0.65]
[1758306163994,2.33113901,236.91,236.87,0.65]
[1758306165798,2.33113901,236.91,236.87,4.8716383]
[1758306169086,2.33113901,236.91,236.88,0.65]
[1758306170296,0.61,236.97,236.89,0.65]
[1758306170492,2.33113901,236.96,236.89,0.65]
[1758306171597,2.33113901,236.94,236.89,0.65]
[1758306171796,2.33113901,236.94,236.89,4.87126643]
[1758306171972,2.94113901,236.94,236.89,4.87126643]
[1758306172386,2.33113901,236.94,236.89,4.22126643]
[1758306172609,2.33113901,236.94,236.9,0.65]
[1758306173400,2.33113901,236.94,236.89,4.22126643]
[1758306173601,2.33113901,236.95,236.91,4.8709067]
[1758306174094,2.94113901,236.95,236.91,4.2209067]
[1758306174297,2.94113901,236.95,236.9,4.22117476]
[1758306174479,2.94113901,236.95,236.9,4.87117476]
[1758306176211,2.94113901,236.95,236.91,0.7]
[1758306176810,0.61,236.95,236.91,0.7]
[1758306177112,2.33113901,236.94,236.91,0.7]
[1758306177491,2.33113901,236.94,236.87,14.77582547]
[1758306177688,33.36,236.97,236.92,0.7]
[1758306178016,33.97,236.97,236.92,0.7]
[1758306179491,33.97,236.97,236.93,0.67]
[1758306179894,33.97,236.97,236.92,4.2207387]
[1758306180094,33.97,236.97,236.92,4.8907387]
[1758306180388,0.61,236.97,236.93,0.67]
[1758306180592,0.61,236.97,236.92,4.2207387]
[1758306180793,0.61,236.97,236.93,0.67]
[1758306181411,33.95,236.97,236.93,0.67]
[1758306182605,33.95,236.97,236.93,4.89058357]
[1758306182794,33.34,236.97,236.93,4.89058357]
[1758306182995,33.34,236.97,236.93,4.22058357]
[1758306182996,33.95,236.97,236.93,4.22058357]
[1758306184212,33.34,236.97,236.93,0.67]
[1758306185011,33.34,236.98,236.93,4.89052106]
[1758306185212,0.61000001,236.99,236.93,4.89052106]
[1758306185514,1e-08,236.99,236.98,1.49209297]
[1758306185719,1e-08,236.99,236.98,2.16209297]
[1758306186997,1e-08,236.99,236.98,6.38185835]
[1758306193495,1e-08,236.99,236.97,1.69194002]
[1758306193694,0.61,236.98,236.97,1.69194002]
[1758306194007,1e-08,236.99,236.97,1.69194002]
[1758306194197,1e-08,236.99,236.95,4.22029964]
[1758306194398,0.61000001,236.99,236.95,4.22029964]